[Event "POL-chT DMP Ekstraliga 2019"]
[Site "Katowice"]
[Date "2019.09.01"]
[Round "5.30"]
[White "Zawadzka, Jolanta"]
[Black "Cyfka, Karina"]
[Result "1/2-1/2"]
[ECO "C42"]
[WhiteElo "2407"]
[BlackElo "2413"]
[Annotator "NA"]
[PlyCount "91"]
[EventDate "2019.08.28"]
[EventType "team-tourn"]
[EventCountry "POL"]
[SourceTitle "playchess.com"]
[Source "ChessBase"]
[SourceQuality "1"]
[TimeControl "40/5400+30:1800+30"]

1. e4 {[%emt 0:00:00]} e5 {[%emt 0:00:00]} 2. Nf3 {[%emt 0:00:00]} Nf6 {[%emt 0:00:00]} 3. Nxe5 {[%emt 0:00:00]} d6 {[%emt 0:00:00]} 4. Nf3 {[%emt 0:00:12]} Nxe4 {[%emt 0:00:14]} 5. d4 {[%emt 0:00:17]} d5 {[%emt 0:00:27]} 6. Bd3 {[%emt 0:00:12]} Bd6 {[%emt 0:01:16]} 7. O-O {[%emt 0:00:22]} O-O {[%emt 0:00:15]} 8. c4 {[%emt 0:00:28]} c6 {[%emt 0:00:17]} 9. cxd5 {[%emt 0:00:42]} cxd5 {[%emt 0:01:24]} 10. Nc3 {[%emt 0:00:21]} Re8 {[%emt 0:02:01]} 11. Qc2 {[%emt 0:12:24]} Nc6 {[%emt 0:07:31]} 12. Nxe4 {[%emt 0:09:04]} dxe4 {[%emt 0:19:28]} 13. Bxe4 {[%emt 0:00:36]} g6 {[%emt 0:04:16]} 14. Bxc6 {[%emt 0:12:31]} Bf5 {[%emt 0:02:43]} 15. Qc3 {[%emt 0:00:46]} bxc6 {[%emt 0:01:15]} 16. Bg5 {[%emt 0:00:14]} Qb6 {[%emt 0:03:32]} 17. Rac1 {[%emt 0:17:21]} Rac8 {[%emt 0:05:00]} 18. Ne5 {[%emt 0:08:59]} Qb5 {[%emt 0:09:32]} 19. Nc4 {[%emt 0:02:50]} Bf8 {[%emt 0:05:51]} 20. Bf4 {[%emt 0:02:57]} Be4 {[%emt 0:04:57]} 21. Be5 {[%emt 0:04:44]} Bd5 {[%emt 0:09:13]} 22. b3 {[%emt 0:02:37]} c5 {[%emt 0:01:24]} 23. Ne3 {[%emt 0:06:18]} cxd4 {[%emt 0:04:07]} 24. Qxd4 {[%emt 0:00:04]} Be6 {[%emt 0:02:11]} 25. Rxc8 {[%emt 0:01:31]} Rxc8 {[%emt 0:00:15]} 26. Qf4 {[%emt 0:00:41]} Be7 {[%emt 0:05:18]} 27. Bb2 {[%emt 0:01:53]} Rd8 {[%emt 0:00:25]} 28. Qc7 {[%emt 0:01:54]} Qc5 {[%emt 0:02:52]} 29. Rc1 {[%emt 0:02:26]} Qxc7 {[%emt 0:01:24]} 30. Rxc7 {[%emt 0:00:02]} Bd6 {[%emt 0:00:25]} 31. Rc1 {[%emt 0:02:46]} Bf4 {[%emt 0:01:43]} 32. Rd1 {[%emt 0:07:25]} Re8 {[%emt 0:03:22]} 33. h3 {[%emt 0:00:38]} h5 {[%emt 0:01:10]} 34. Kf1 {[%emt 0:01:14]} Kf8 {[%emt 0:00:50]} 35. Bf6 {[%emt 0:01:17]} Rc8 {[%emt 0:01:46]} 36. Nc4 {[%emt 0:01:10]} Bc7 {[%emt 0:00:49]} 37. f3 {[%emt 0:00:53]} a5 {[%emt 0:00:15]} 38. g4 {[%emt 0:00:26]} a4 {[%emt 0:00:19]} 39. Ke2 {[%emt 0:00:28]} axb3 {[%emt 0:00:49]} 40. axb3 {[%emt 0:00:00]} Rb8 {[%emt 0:00:00]} 41. Nd2 {[%emt 0:05:53]} Bf4 {[%emt 0:12:01]} 42. Ra1 {[%emt 0:02:04]} Ke8 {[%emt 0:06:43]} 43. Ra4 {[%emt 0:07:54]} Bxd2 {[%emt 0:01:51]} 44. Kxd2 {[%emt 0:00:06]} Rxb3 {[%emt 0:00:22]} 45. Rd4 {[%emt 0:00:42]} Bd7 {[%emt 0:01:54]} 46. Rd3 {[%emt 0:05:40]} 1/2-1/2

[Event "POL-chT DMP Ekstraliga 2019"]
[Site "Katowice"]
[Date "2019.09.02"]
[Round "6.1"]
[White "Kempinski, Robert"]
[Black "Kuzmicz, Krystian"]
[Result "0-1"]
[ECO "B06"]
[WhiteElo "2579"]
[BlackElo "2461"]
[Annotator "ChessBase"]
[PlyCount "120"]
[EventDate "2019.08.28"]
[EventType "team-tourn"]
[EventCountry "POL"]
[SourceTitle "playchess.com"]
[Source "ChessBase"]
[SourceQuality "1"]
[TimeControl "40/5400+30:1800+30"]

1. d4 {[%emt 0:00:00]} g6 {[%emt 0:00:00]} 2. Nf3 {[%emt 0:00:14]} Bg7 {[%emt 0:00:00]} 3. e4 {[%emt 0:00:34]} d6 {[%emt 0:07:10]} 4. c3 {[%emt 0:02:14]} Nf6 {[%emt 0:04:42]} 5. Bd3 {[%emt 0:00:09]} O-O {[%emt 0:00:08]} 6. O-O {[%emt 0:00:09]} Nc6 {[%emt 0:01:57]} 7. Re1 {[%emt 0:04:51]} e5 {[%emt 0:01:57]} 8. h3 {[%emt 0:00:50]} Nh5 {[%emt 0:08:00]} 9. Bg5 {[%emt 0:01:59]} Qe8 {[%emt 0:02:41]} 10. dxe5 {[%emt 0:09:44]} dxe5 {[%emt 0:01:58]} 11. Na3 {[%emt 0:09:10]} h6 {[%emt 0:11:27]} 12. Be3 {[%emt 0:01:13]} Qe7 {[%emt 0:00:42]} 13. Qc1 {[%emt 0:04:52]} g5 {[%emt 0:10:00]} 14. Bf1 {[%emt 0:04:23]} Nf4 {[%emt 0:04:55]} 15. b4 {[%emt 0:02:32]} b6 {[%emt 0:07:07]} 16. Nc4 {[%emt 0:01:42]} Re8 {[%emt 0:04:31]} 17. a4 {[%emt 0:05:59]} Qf6 {[%emt 0:02:53]} 18. b5 {[%emt 0:06:29]} Nd8 {[%emt 0:01:08]} 19. Nh2 {[%emt 0:00:56]} Qg6 {[%emt 0:01:34]} 20. a5 {[%emt 0:02:45]} Rb8 {[%emt 0:02:19]} 21. axb6 {[%emt 0:01:48]} axb6 {[%emt 0:00:04]} 22. Ra7 {[%emt 0:00:36]} Nb7 {[%emt 0:02:00]} 23. Nf3 {[%emt 0:05:20]} Qf6 {[%emt 0:02:00]} 24. Bxf4 {[%emt 0:06:22]} gxf4 {[%emt 0:04:47]} 25. Rd1 {[%emt 0:00:36]} Qg6 {[%emt 0:05:17]} 26. Kh2 {[%emt 0:00:55]} Bf6 {[%emt 0:00:57]} 27. Qb1 {[%emt 0:03:21]} Kh8 {[%emt 0:02:40]} 28. Ncd2 {[%emt 0:06:58]} Qg7 {[%emt 0:01:51]} 29. Bc4 {[%emt 0:01:03]} Rg8 {[%emt 0:00:41]} 30. Rg1 {[%emt 0:01:01]} Be7 {[%emt 0:03:41]} 31. Bd5 {[%emt 0:01:09]} Bc5 {[%emt 0:00:25]} 32. Qf1 {[%emt 0:01:00]} Re8 {[%emt 0:00:41]} 33. Nb3 {[%emt 0:01:16]} Bd6 {[%emt 0:00:15]} 34. Qc4 {[%emt 0:01:07]} Rf8 {[%emt 0:02:34]} 35. Qe2 {[%emt 0:01:23]} Nd8 {[%emt 0:00:55]} 36. Nbd2 {[%emt 0:01:02]} Bd7 {[%emt 0:00:20]} 37. Rb1 {[%emt 0:01:18]} Rg8 {[%emt 0:01:54]} 38. Qf1 {[%emt 0:00:10]} Ne6 {[%emt 0:00:28]} 39. Nc4 {[%emt 0:00:26]} Nc5 {[%emt 0:00:09]} 40. Ne1 {[%emt 0:00:00]} Qg6 {[%emt 0:00:00]} 41. Nf3 {[%emt 0:14:15]} Qh5 {[%emt 0:05:43]} 42. Nxd6 {[%emt 0:04:22]} cxd6 {[%emt 0:00:10]} 43. c4 {[%emt 0:01:03]} Rg7 {[%emt 0:03:50]} 44. Ra3 {[%emt 0:01:35]} Rbg8 {[%emt 0:00:50]} 45. Ne1 {[%emt 0:00:15]} Rg5 {[%emt 0:06:54]} 46. Rba1 {[%emt 0:01:19]} Kh7 {[%emt 0:01:50]} 47. Rc3 {[%emt 0:01:13]} Qg6 {[%emt 0:00:14]} 48. Ra7 {[%emt 0:02:56]} Rg7 {[%emt 0:01:41]} 49. Rca3 {[%emt 0:01:03]} Qh5 {[%emt 0:07:17]} 50. Rc7 {[%emt 0:10:39]} Qd1 {[%emt 0:00:38]} 51. Qh1 {[%emt 0:03:18]} Qe2 {[%emt 0:02:32]} 52. Nf3 {[%emt 0:00:38]} Rg3 {[%emt 0:00:17]} 53. Qg1 {[%emt 0:01:28]} Rxh3+ {[%emt 0:05:21]} 54. gxh3 {[%emt 0:00:07]} Rxg1 {[%emt 0:00:02]} 55. Kxg1 {[%emt 0:00:12]} Nd3 {[%emt 0:01:01]} 56. Rxd3 {[%emt 0:03:32]} Qxd3 {[%emt 0:00:02]} 57. Rxd7 {[%emt 0:01:27]} Qxf3 {[%emt 0:00:02]} 58. Bxf7 {[%emt 0:01:10]} Kh8 {[%emt 0:00:14]} 59. Bg6 {[%emt 0:00:45]} Qd1+ {[%emt 0:00:24]} 60. Kh2 {[%emt 0:00:33]} Qf1 {[%emt 0:00:45]} 0-1

[Event "POL-chT DMP Ekstraliga 2019"]
[Site "Katowice"]
[Date "2019.09.02"]
[Round "6.3"]
[White "Kriebel, Tadeas"]
[Black "Skawinski, Arkadiusz"]
[Result "1-0"]
[ECO "C11"]
[WhiteElo "2531"]
[BlackElo "2398"]
[Annotator "ChessBase"]
[PlyCount "71"]
[EventDate "2019.08.28"]
[EventType "team-tourn"]
[EventCountry "POL"]
[SourceTitle "playchess.com"]
[Source "ChessBase"]
[SourceQuality "1"]
[TimeControl "40/5400+30:1800+30"]

1. e4 {[%emt 0:00:00]} e6 {[%emt 0:00:00]} 2. d4 {[%emt 0:00:00]} d5 {[%emt 0:00:00]} 3. Nc3 {[%emt 0:00:00]} Nf6 {[%emt 0:00:00]} 4. e5 {[%emt 0:00:00]} Nfd7 {[%emt 0:00:00]} 5. Nce2 {[%emt 0:00:00]} c5 {[%emt 0:00:00]} 6. c3 {[%emt 0:00:03]} Nc6 {[%emt 0:00:00]} 7. Nf3 {[%emt 0:00:07]} Qb6 {[%emt 0:05:44]} 8. a3 {[%emt 0:02:57]} Be7 {[%emt 0:13:43]} 9. b4 {[%emt 0:04:58]} cxd4 {[%emt 0:00:24]} 10. cxd4 {[%emt 0:00:04]} a5 {[%emt 0:10:47]} 11. b5 {[%emt 0:03:13]} Nd8 {[%emt 0:01:40]} 12. a4 {[%emt 0:06:53]} f6 {[%emt 0:03:13]} 13. exf6 {[%emt 0:02:57]} Nxf6 {[%emt 0:00:26]} 14. Ng3 {[%emt 0:00:44]} O-O {[%emt 0:05:41]} 15. Bd3 {[%emt 0:00:14]} Nf7 {[%emt 0:02:06]} 16. O-O {[%emt 0:00:11]} Bd7 {[%emt 0:00:04]} 17. Bf4 {[%emt 0:15:25]} Rac8 {[%emt 0:01:52]} 18. Qb1 {[%emt 0:01:18]} Be8 {[%emt 0:14:52]} 19. Ra2 {[%emt 0:04:06]} h6 {[%emt 0:04:26]} 20. Re2 {[%emt 0:03:00]} Bb4 {[%emt 0:00:15]} 21. h4 {[%emt 0:06:36]} Nd8 {[%emt 0:07:48]} 22. Rc1 {[%emt 0:04:27]} Rxc1+ {[%emt 0:02:59]} 23. Qxc1 {[%emt 0:00:46]} Bd6 {[%emt 0:00:06]} 24. Bxd6 {[%emt 0:02:05]} Qxd6 {[%emt 0:00:07]} 25. Ne5 {[%emt 0:01:58]} Nd7 {[%emt 0:03:13]} 26. Bb1 {[%emt 0:07:02]} Nxe5 {[%emt 0:02:04]} 27. dxe5 {[%emt 0:00:04]} Qb4 {[%emt 0:00:35]} 28. Qc2 {[%emt 0:01:11]} Qg4 {[%emt 0:09:33]} 29. Qh7+ {[%emt 0:04:42]} Kf7 {[%emt 0:00:05]} 30. Rc2 {[%emt 0:00:20]} Bd7 {[%emt 0:05:48]} 31. Rc7 {[%emt 0:00:17]} Ke7 {[%emt 0:00:18]} 32. Bg6 {[%emt 0:00:28]} Rf4 {[%emt 0:00:55]} 33. Bh5 {[%emt 0:01:16]} Qxh4 {[%emt 0:01:40]} 34. Qxg7+ {[%emt 0:00:04]} Nf7 {[%emt 0:00:05]} 35. Bxf7 {[%emt 0:00:09]} Kd8 {[%emt 0:01:31]} 36. Rxb7 {[%emt 0:03:03]} 1-0

[Event "POL-chT DMP Ekstraliga 2019"]
[Site "Katowice"]
[Date "2019.09.02"]
[Round "6.5"]
[White "Bobras, Piotr"]
[Black "Butkiewicz, Lukasz"]
[Result "1-0"]
[ECO "B19"]
[WhiteElo "2488"]
[BlackElo "2436"]
[Annotator "ChessBase"]
[PlyCount "67"]
[EventDate "2019.08.28"]
[EventType "team-tourn"]
[EventCountry "POL"]
[SourceTitle "playchess.com"]
[Source "ChessBase"]
[SourceQuality "1"]
[TimeControl "40/5400+30:1800+30"]

1. e4 {[%emt 0:00:00]} c6 {[%emt 0:00:00]} 2. d4 {[%emt 0:00:00]} d5 {[%emt 0:00:00]} 3. Nc3 {[%emt 0:00:00]} dxe4 {[%emt 0:00:00]} 4. Nxe4 {[%emt 0:00:00]} Bf5 {[%emt 0:00:00]} 5. Ng3 {[%emt 0:00:00]} Bg6 {[%emt 0:00:00]} 6. h4 {[%emt 0:00:01]} h6 {[%emt 0:00:00]} 7. Nf3 {[%emt 0:00:05]} Nd7 {[%emt 0:00:18]} 8. h5 {[%emt 0:00:21]} Bh7 {[%emt 0:00:04]} 9. Bd3 {[%emt 0:00:06]} Bxd3 {[%emt 0:00:09]} 10. Qxd3 {[%emt 0:00:06]} Ngf6 {[%emt 0:01:26]} 11. Bd2 {[%emt 0:01:57]} e6 {[%emt 0:01:29]} 12. O-O-O {[%emt 0:00:10]} Be7 {[%emt 0:00:07]} 13. Kb1 {[%emt 0:00:15]} O-O {[%emt 0:00:14]} 14. Ne4 {[%emt 0:00:10]} Nxe4 {[%emt 0:01:20]} 15. Qxe4 {[%emt 0:00:05]} Nf6 {[%emt 0:00:06]} 16. Qe2 {[%emt 0:00:54]} Qd5 {[%emt 0:00:11]} 17. Be3 {[%emt 0:05:41]} b5 {[%emt 0:01:32]} 18. Ne5 {[%emt 0:02:00]} Bd6 {[%emt 0:01:11]} 19. Nd3 {[%emt 0:08:34]} a5 {[%emt 0:02:46]} 20. g4 {[%emt 0:01:52]} a4 {[%emt 0:02:56]} 21. Rhg1 {[%emt 0:32:16]} a3 {[%emt 0:20:04]} 22. b3 {[%emt 0:00:09]} Ne4 {[%emt 0:01:56]} 23. Qe1 {[%emt 0:00:22]} f6 {[%emt 0:05:04]} 24. c3 {[%emt 0:19:21]} Rad8 {[%emt 0:08:38]} 25. Kc2 {[%emt 0:01:28]} Kh8 {[%emt 0:21:12]} 26. Qe2 {[%emt 0:03:47]} f5 {[%emt 0:08:46]} 27. g5 {[%emt 0:08:00]} f4 {[%emt 0:02:59]} 28. gxh6 {[%emt 0:02:00]} gxh6 {[%emt 0:00:07]} 29. Rg6 {[%emt 0:05:23]} Kh7 {[%emt 0:00:58]} 30. Bc1 {[%emt 0:02:41]} Ng5 {[%emt 0:01:17]} 31. Rg1 {[%emt 0:02:18]} Qf5 {[%emt 0:01:31]} 32. Qg4 {[%emt 0:02:12]} Qd5 {[%emt 0:02:23]} 33. Re1 {[%emt 0:01:33]} c5 {[%emt 0:05:07]} 34. Rexe6 {[%emt 0:00:51]} 1-0

[Event "POL-chT DMP Ekstraliga 2019"]
[Site "Katowice"]
[Date "2019.09.02"]
[Round "6.6"]
[White "Bartel, Marta"]
[Black "Kiolbasa, Oliwia"]
[Result "1/2-1/2"]
[ECO "A40"]
[WhiteElo "2244"]
[BlackElo "2244"]
[Annotator "NA"]
[PlyCount "81"]
[EventDate "2019.08.28"]
[EventType "team-tourn"]
[EventCountry "POL"]
[SourceTitle "playchess.com"]
[Source "ChessBase"]
[SourceQuality "1"]
[TimeControl "40/5400+30:1800+30"]

1. d4 {[%emt 0:00:00]} Nf6 {[%emt 0:00:00]} 2. c4 {[%emt 0:00:00]} e6 {[%emt 0:00:00]} 3. g3 {[%emt 0:01:39]} c5 {[%emt 0:00:01]} 4. d5 {[%emt 0:00:46]} exd5 {[%emt 0:00:25]} 5. cxd5 {[%emt 0:00:05]} b5 {[%emt 0:00:11]} 6. Bg2 {[%emt 0:00:53]} Bb7 {[%emt 0:00:37]} 7. e4 {[%emt 0:02:35]} d6 {[%emt 0:00:31]} 8. Ne2 {[%emt 0:04:06]} g6 {[%emt 0:02:26]} 9. a4 {[%emt 0:06:29]} b4 {[%emt 0:14:58]} 10. Nd2 {[%emt 0:20:20]} Bg7 {[%emt 0:00:13]} 11. Nc4 {[%emt 0:01:25]} O-O {[%emt 0:07:53]} 12. Bf4 {[%emt 0:01:59]} Ne8 {[%emt 0:00:08]} 13. Qc2 {[%emt 0:07:53]} Na6 {[%emt 0:01:29]} 14. O-O {[%emt 0:00:36]} Rb8 {[%emt 0:05:56]} 15. Nc1 {[%emt 0:04:29]} f5 {[%emt 0:12:57]} 16. Qd2 {[%emt 0:16:33]} fxe4 {[%emt 0:01:57]} 17. Bxe4 {[%emt 0:00:16]} Nac7 {[%emt 0:00:06]} 18. Na5 {[%emt 0:09:09]} Rxf4 {[%emt 0:04:41]} 19. Nxb7 {[%emt 0:04:16]} Rxb7 {[%emt 0:00:27]} 20. gxf4 {[%emt 0:01:30]} Qh4 {[%emt 0:03:30]} 21. Bg2 {[%emt 0:01:02]} Nf6 {[%emt 0:01:09]} 22. h3 {[%emt 0:02:41]} Bh6 {[%emt 0:04:42]} 23. Ne2 {[%emt 0:00:35]} Nh5 {[%emt 0:01:04]} 24. Qe3 {[%emt 0:02:21]} Rb8 {[%emt 0:02:33]} 25. Rae1 {[%emt 0:01:23]} Re8 {[%emt 0:14:36]} 26. Qf3 {[%emt 0:00:09]} Rf8 {[%emt 0:00:11]} 27. Qg4 {[%emt 0:01:52]} Qxg4 {[%emt 0:04:51]} 28. hxg4 {[%emt 0:00:02]} Nxf4 {[%emt 0:00:06]} 29. Nxf4 {[%emt 0:00:15]} Bxf4 {[%emt 0:00:05]} 30. Re7 {[%emt 0:02:10]} Rf7 {[%emt 0:00:05]} 31. Rfe1 {[%emt 0:00:41]} g5 {[%emt 0:03:48]} 32. b3 {[%emt 0:01:21]} Kf8 {[%emt 0:01:10]} 33. Rxf7+ {[%emt 0:00:20]} Kxf7 {[%emt 0:00:01]} 34. Kf1 {[%emt 0:00:40]} a5 {[%emt 0:03:12]} 35. Ke2 {[%emt 0:00:33]} c4 {[%emt 0:01:23]} 36. bxc4 {[%emt 0:01:00]} Na6 {[%emt 0:00:01]} 37. Rh1 {[%emt 0:02:01]} Kg7 {[%emt 0:00:10]} 38. Be4 {[%emt 0:01:20]} h6 {[%emt 0:00:08]} 39. Bc2 {[%emt 0:00:59]} Nc5 {[%emt 0:00:51]} 40. Rb1 {[%emt 0:00:00]} Be5 {[%emt 0:00:00]} 41. Kf3 {[%emt 0:05:34]} 1/2-1/2

[Event "POL-chT DMP Ekstraliga 2019"]
[Site "Katowice"]
[Date "2019.09.02"]
[Round "6.9"]
[White "Markowski, Tomasz"]
[Black "Piesik, Piotr"]
[Result "1/2-1/2"]
[ECO "A40"]
[WhiteElo "2537"]
[BlackElo "2409"]
[Annotator "ChessBase"]
[PlyCount "98"]
[EventDate "2019.08.28"]
[EventType "team-tourn"]
[EventCountry "POL"]
[SourceTitle "playchess.com"]
[Source "ChessBase"]
[SourceQuality "1"]
[TimeControl "40/5400+30:1800+30"]

1. d4 {[%emt 0:00:00]} g6 {[%emt 0:00:18]} 2. Nf3 {[%emt 0:00:00]} Bg7 {[%emt 0:00:04]} 3. c3 {[%emt 0:00:48]} d6 {[%emt 0:01:07]} 4. e4 {[%emt 0:00:46]} Nd7 {[%emt 0:01:09]} 5. Bd3 {[%emt 0:00:33]} e5 {[%emt 0:00:46]} 6. O-O {[%emt 0:00:16]} Ngf6 {[%emt 0:00:24]} 7. Re1 {[%emt 0:00:47]} O-O {[%emt 0:00:42]} 8. Nbd2 {[%emt 0:04:18]} b6 {[%emt 0:05:37]} 9. Bf1 {[%emt 0:04:43]} Bb7 {[%emt 0:01:33]} 10. d5 {[%emt 0:00:57]} h6 {[%emt 0:08:58]} 11. c4 {[%emt 0:01:51]} a5 {[%emt 0:07:58]} 12. Nb1 {[%emt 0:03:01]} Nh7 {[%emt 0:03:41]} 13. Nc3 {[%emt 0:01:33]} f5 {[%emt 0:03:17]} 14. exf5 {[%emt 0:00:16]} gxf5 {[%emt 0:00:04]} 15. g3 {[%emt 0:00:04]} Nc5 {[%emt 0:03:34]} 16. Be3 {[%emt 0:04:17]} Qf6 {[%emt 0:05:06]} 17. Nh4 {[%emt 0:03:08]} Ng5 {[%emt 0:06:26]} 18. Qc2 {[%emt 0:09:18]} Rae8 {[%emt 0:07:37]} 19. Rad1 {[%emt 0:02:15]} Bc8 {[%emt 0:09:48]} 20. f4 {[%emt 0:01:25]} exf4 {[%emt 0:01:15]} 21. Bxf4 {[%emt 0:00:05]} Nce4 {[%emt 0:04:37]} 22. Nb5 {[%emt 0:02:28]} Re7 {[%emt 0:02:53]} 23. Bg2 {[%emt 0:06:59]} Rfe8 {[%emt 0:01:08]} 24. Rf1 {[%emt 0:01:48]} Qxb2 {[%emt 0:05:24]} 25. Qxb2 {[%emt 0:00:17]} Bxb2 {[%emt 0:00:04]} 26. Bxg5 {[%emt 0:00:30]} Nxg5 {[%emt 0:00:29]} 27. Nxf5 {[%emt 0:01:00]} Bxf5 {[%emt 0:00:31]} 28. Rxf5 {[%emt 0:00:07]} Re1+ {[%emt 0:04:52]} 29. Rxe1 {[%emt 0:03:14]} Rxe1+ {[%emt 0:00:07]} 30. Rf1 {[%emt 0:00:07]} Re7 {[%emt 0:00:55]} 31. h4 {[%emt 0:02:40]} Nf7 {[%emt 0:00:07]} 32. Bh3 {[%emt 0:00:58]} Kg7 {[%emt 0:01:03]} 33. Be6 {[%emt 0:02:35]} Nd8 {[%emt 0:00:55]} 34. Bg4 {[%emt 0:03:57]} Bf6 {[%emt 0:00:46]} 35. Kg2 {[%emt 0:06:24]} Nb7 {[%emt 0:01:08]} 36. Bf5 {[%emt 0:02:23]} Nc5 {[%emt 0:01:08]} 37. Rf4 {[%emt 0:01:06]} Re2+ {[%emt 0:04:03]} 38. Rf2 {[%emt 0:03:20]} Re7 {[%emt 0:00:16]} 39. Kh3 {[%emt 0:02:42]} Na6 {[%emt 0:03:50]} 40. Rf4 {[%emt 0:00:00]} Be5 {[%emt 0:00:00]} 41. Rg4+ {[%emt 0:08:42]} Kf6 {[%emt 0:05:08]} 42. Be4 {[%emt 0:01:57]} Rg7 {[%emt 0:04:27]} 43. Rxg7 {[%emt 0:00:15]} Kxg7 {[%emt 0:00:01]} 44. Kg4 {[%emt 0:00:25]} Kf6 {[%emt 0:01:34]} 45. Kf3 {[%emt 0:00:42]} Bb2 {[%emt 0:01:26]} 46. Bc2 {[%emt 0:03:32]} Nb4 {[%emt 0:05:54]} 47. Bb1 {[%emt 0:00:24]} Na6 {[%emt 0:00:03]} 48. Bc2 {[%emt 0:08:41]} Nb4 {[%emt 0:00:20]} 49. Bb1 {[%emt 0:00:02]} Na6 {[%emt 0:00:12]} 1/2-1/2

[Event "POL-chT DMP Ekstraliga 2019"]
[Site "Katowice"]
[Date "2019.09.02"]
[Round "6.10"]
[White "Simantsev, Mikhail"]
[Black "Nasuta, Grzegorz"]
[Result "1/2-1/2"]
[ECO "D70"]
[WhiteElo "2346"]
[BlackElo "2533"]
[Annotator "ChessBase"]
[PlyCount "85"]
[EventDate "2019.08.28"]
[EventType "team-tourn"]
[EventCountry "POL"]
[SourceTitle "playchess.com"]
[Source "ChessBase"]
[SourceQuality "1"]
[TimeControl "40/5400+30:1800+30"]

1. d4 {[%emt 0:00:00]} Nf6 {[%emt 0:00:00]} 2. c4 {[%emt 0:00:00]} g6 {[%emt 0:00:00]} 3. f3 {[%emt 0:00:00]} d5 {[%emt 0:00:00]} 4. cxd5 {[%emt 0:00:00]} Nxd5 {[%emt 0:00:00]} 5. e4 {[%emt 0:00:00]} Nb6 {[%emt 0:00:03]} 6. Nc3 {[%emt 0:00:00]} Bg7 {[%emt 0:00:11]} 7. Be3 {[%emt 0:00:00]} O-O {[%emt 0:00:22]} 8. Qd2 {[%emt 0:00:00]} Nc6 {[%emt 0:00:39]} 9. O-O-O {[%emt 0:00:00]} Qd6 {[%emt 0:00:08]} 10. Nb5 {[%emt 0:00:05]} Qd7 {[%emt 0:00:25]} 11. Kb1 {[%emt 0:00:04]} Rd8 {[%emt 0:01:43]} 12. d5 {[%emt 0:00:04]} a6 {[%emt 0:00:35]} 13. Nc3 {[%emt 0:00:06]} Qe8 {[%emt 0:00:07]} 14. Qc1 {[%emt 0:00:28]} Na5 {[%emt 0:00:36]} 15. h4 {[%emt 0:00:03]} e6 {[%emt 0:00:17]} 16. Bf4 {[%emt 0:00:02]} Qe7 {[%emt 0:03:28]} 17. Bg5 {[%emt 0:03:54]} f6 {[%emt 0:15:14]} 18. Bd2 {[%emt 0:00:53]} exd5 {[%emt 0:09:14]} 19. Nxd5 {[%emt 0:06:44]} Nxd5 {[%emt 0:00:37]} 20. Bxa5 {[%emt 0:00:31]} Nb6 {[%emt 0:04:28]} 21. Rxd8+ {[%emt 0:12:21]} Qxd8 {[%emt 0:00:02]} 22. Bxb6 {[%emt 0:06:23]} cxb6 {[%emt 0:00:44]} 23. Bc4+ {[%emt 0:00:05]} Kh8 {[%emt 0:16:21]} 24. h5 {[%emt 0:05:10]} gxh5 {[%emt 0:01:01]} 25. Ne2 {[%emt 0:34:24]} Bd7 {[%emt 0:12:40]} 26. Ng3 {[%emt 0:26:26]} Be8 {[%emt 0:00:42]} 27. Bd5 {[%emt 0:04:09]} Rc8 {[%emt 0:03:44]} 28. Qf4 {[%emt 0:01:25]} Bg6 {[%emt 0:07:46]} 29. Nf5 {[%emt 0:00:01]} Qd7 {[%emt 0:07:34]} 30. Rd1 {[%emt 0:01:04]} Bxf5 {[%emt 0:12:21]} 31. exf5 {[%emt 0:00:01]} Qc7 {[%emt 0:00:23]} 32. Qxc7 {[%emt 0:00:54]} Rxc7 {[%emt 0:00:01]} 33. Be4 {[%emt 0:00:41]} Bh6 {[%emt 0:00:52]} 34. a3 {[%emt 0:00:26]} Kg7 {[%emt 0:00:09]} 35. Rh1 {[%emt 0:00:24]} Rd7 {[%emt 0:03:10]} 36. Rxh5 {[%emt 0:00:02]} Rd1+ {[%emt 0:00:24]} 37. Ka2 {[%emt 0:00:02]} Rd2 {[%emt 0:00:06]} 38. g4 {[%emt 0:01:10]} Bf4 {[%emt 0:00:18]} 39. Rh1 {[%emt 0:00:09]} Be5 {[%emt 0:00:53]} 40. Rb1 {[%emt 0:00:00]} a5 {[%emt 0:00:00]} 41. Bxb7 {[%emt 0:09:12]} h5 {[%emt 0:04:57]} 42. gxh5 {[%emt 0:02:37]} Kh6 {[%emt 0:00:04]} 43. Kb3 {[%emt 0:02:09]} 1/2-1/2

[Event "POL-chT DMP Ekstraliga 2019"]
[Site "Katowice"]
[Date "2019.09.02"]
[Round "6.11"]
[White "Jakubowski, Krzysztof"]
[Black "Szustakowski, Antoni"]
[Result "0-1"]
[ECO "A00"]
[WhiteElo "2518"]
[BlackElo "2256"]
[Annotator "ChessBase"]
[PlyCount "93"]
[EventDate "2019.08.28"]
[EventType "team-tourn"]
[EventCountry "POL"]
[SourceTitle "playchess.com"]
[Source "ChessBase"]
[SourceQuality "1"]
[TimeControl "40/5400+30:1800+30"]

1. g3 {[%emt 0:00:00]} d5 {[%emt 0:00:00]} 2. Bg2 {[%emt 0:00:00]} Nf6 {[%emt 0:00:00]} 3. f4 {[%emt 0:00:03]} g6 {[%emt 0:00:00]} 4. Nf3 {[%emt 0:00:08]} Bg7 {[%emt 0:00:00]} 5. O-O {[%emt 0:00:06]} O-O {[%emt 0:00:06]} 6. d3 {[%emt 0:00:04]} c5 {[%emt 0:00:05]} 7. Qe1 {[%emt 0:00:07]} d4 {[%emt 0:03:22]} 8. h3 {[%emt 0:00:37]} Qc7 {[%emt 0:02:04]} 9. Na3 {[%emt 0:04:36]} Nc6 {[%emt 0:03:31]} 10. g4 {[%emt 0:04:49]} Rb8 {[%emt 0:16:49]} 11. Qh4 {[%emt 0:10:09]} e6 {[%emt 0:17:11]} 12. e4 {[%emt 0:11:13]} dxe3 {[%emt 0:01:05]} 13. Bxe3 {[%emt 0:00:07]} Nb4 {[%emt 0:10:11]} 14. Rae1 {[%emt 0:14:01]} b5 {[%emt 0:05:01]} 15. Qf2 {[%emt 0:16:35]} Na6 {[%emt 0:04:35]} 16. c4 {[%emt 0:08:21]} bxc4 {[%emt 0:04:42]} 17. dxc4 {[%emt 0:00:12]} Ne4 {[%emt 0:02:46]} 18. Qc2 {[%emt 0:00:19]} Rxb2 {[%emt 0:03:34]} 19. Qxe4 {[%emt 0:00:45]} Bb7 {[%emt 0:00:06]} 20. Qd3 {[%emt 0:03:30]} Rd8 {[%emt 0:00:25]} 21. Nb5 {[%emt 0:00:01]} Rxd3 {[%emt 0:00:49]} 22. Nxc7 {[%emt 0:00:04]} Nxc7 {[%emt 0:00:05]} 23. Bxc5 {[%emt 0:00:03]} Na6 {[%emt 0:12:36]} 24. Bxa7 {[%emt 0:00:59]} Rxa2 {[%emt 0:00:16]} 25. Rf2 {[%emt 0:04:10]} Rxf2 {[%emt 0:03:27]} 26. Kxf2 {[%emt 0:00:05]} Rc3 {[%emt 0:00:14]} 27. Rd1 {[%emt 0:13:20]} Rxc4 {[%emt 0:01:17]} 28. Ne5 {[%emt 0:00:01]} Rxf4+ {[%emt 0:02:54]} 29. Ke3 {[%emt 0:02:12]} Bxe5 {[%emt 0:00:21]} 30. Bxb7 {[%emt 0:00:34]} Nc7 {[%emt 0:00:07]} 31. g5 {[%emt 0:02:43]} h6 {[%emt 0:01:35]} 32. gxh6 {[%emt 0:00:56]} Kh7 {[%emt 0:00:03]} 33. Rd7 {[%emt 0:00:30]} Kxh6 {[%emt 0:01:17]} 34. Ke2 {[%emt 0:00:24]} Kg7 {[%emt 0:01:32]} 35. Kd3 {[%emt 0:03:18]} Ne8 {[%emt 0:01:20]} 36. Rd8 {[%emt 0:00:23]} Nf6 {[%emt 0:00:55]} 37. Ke2 {[%emt 0:01:14]} Rb4 {[%emt 0:00:31]} 38. Bf3 {[%emt 0:00:29]} Rb2+ {[%emt 0:00:05]} 39. Kf1 {[%emt 0:00:03]} Rb1+ {[%emt 0:00:17]} 40. Kg2 {[%emt 0:00:00]} Nh5 {[%emt 0:00:00]} 41. Be3 {[%emt 0:01:29]} Rb2+ {[%emt 0:06:14]} 42. Rd2 {[%emt 0:00:43]} Rb3 {[%emt 0:00:20]} 43. Re2 {[%emt 0:00:20]} Ng3 {[%emt 0:03:07]} 44. Bh6+ {[%emt 0:01:53]} Kxh6 {[%emt 0:00:22]} 45. Rxe5 {[%emt 0:00:06]} Nf5 {[%emt 0:00:05]} 46. Re4 {[%emt 0:00:26]} g5 {[%emt 0:00:27]} 47. Be2 {[%emt 0:00:27]} 0-1